Cogmind - Beta 15 @@@ ROGUE MODE // 2025.05.22 @ 19:31:45 Player: amhumam Result: Destroyed by H-55 Commando with Gauss Rifle Performance ------------- Evolutions (2) 1000 Regions Visited (3) 600 Robots Destroyed (52) 260 Value Destroyed (1582) 1582 Prototype IDs (0) 0 Alien Tech Used (0) 0 Bonus (44) 44 TOTAL SCORE: 3486 Bonus ------- High Alert Combat Kills 44 Cogmind --------- Core Integrity 0/550 Matter 57/300 Energy 100/100 System Corruption 0% Temperature Cool (0) Movement Core (1500) Ox29 Location -8/Materials Parts ------- > --- POWER (1) -------- (None) > --- PROPULSION (4) --- (None) > --- UTILITY (4) ------ Small Storage Unit Huge Storage Unit > --- WEAPON (2) ------- Rocket Launcher > --- INVENTORY (25) --- High-capacity Matter Pod (200) System Shield Medium Laser Pulse Rifle Beam Cannon High-powered Shotgun High-powered Shotgun Flak Cannon Rocket Launcher Peak State ------------ > --- POWER ------------ Reinforced Ion Engine > --- PROPULSION ------- Aluminum Leg Aluminum Leg Wheel Wheel > --- UTILITY ---------- Heat Sink Improved Heat Sink Small Storage Unit Huge Storage Unit > --- WEAPON ----------- Heavy Particle Cannon Rocket Launcher > --- INVENTORY -------- Light Ion Engine High-capacity Matter Pod System Shield Medium Laser Pulse Rifle Beam Cannon Beam Cannon Ion Cannon High-powered Shotgun High-powered Shotgun High-powered Shotgun High-powered Shotgun Flak Cannon Flak Cannon Rocket Launcher Rocket Launcher [Rating: 20] Favorites ----------- Power Light Ion Engine Engine Light Ion Engine Power Core Light Nuclear Core Propulsion Light Treads Treads Light Treads Leg Aluminum Leg Wheel Compact Wheel Utility Small Storage Unit Device Improved Heat Sink Storage Small Storage Unit Weapon Medium Laser Energy Gun Medium Laser Energy Cannon Beam Cannon Ballistic Gun High-powered Shotgun Ballistic Cannon Flak Cannon Launcher Rocket Launcher Build | -11 -10 -9 -8 ------- Run | Yrd Mat Mat Mat Slots Evolved 4 | . . 2 2 Power . | . . . . Propulsion 2 | . . 1 1 Utility 2 | . . 1 1 Weapon . | . . . . Parts Attached 33 | 6 2 6 19 Power 4 | 1 . . 3 Engine 3 | 1 . . 2 Core 1 | . . . 1 Reactor . | . . . . Propulsion 9 | 2 . 2 5 Treads 3 | 2 . 1 . Leg 2 | . . . 2 Wheel 4 | . . 1 3 Hover . | . . . . Flight . | . . . . Utility 4 | 1 1 1 1 Device 2 | . 1 . 1 Storage 2 | 1 . 1 . Processor . | . . . . Hackware . | . . . . Protection . | . . . . Artifact . | . . . . Weapon 16 | 2 1 3 10 Energy Gun 3 | 2 . . 1 Energy Cannon 4 | . . 1 3 Ballistic Gun 3 | . . . 3 Ballistic Cannon 2 | . . . 2 Launcher 4 | . 1 2 1 Special Weapon . | . . . . Impact Weapon . | . . . . Slashing Weapon . | . . . . Piercing Weapon . | . . . . Special Melee Weapon . | . . . . Unidentified Prototypes . | . . . . Parts Lost 24 | . . 1 23 Power 4 | . . . 4 Propulsion 9 | . . 1 8 Utility 2 | . . . 2 Weapon 9 | . . . 9 Highest Loss Streak 11 | . . 1 11 To Critical Strikes . | . . . . Average Backups 10 | 1 6 11 15 Power 1 | . 1 1 1 Propulsion . | . . . . Utility . | . . 1 1 Weapon 8 | . 4 8 12 Tool/Special . | . . . . Unused Backups 8 | . 3 . 5 Power 1 | . 1 . . Propulsion . | . . . . Utility 2 | . . . 2 Weapon 5 | . 2 . 3 Tool/Special . | . . . . Average Slot Usage (%) 79 | . 90 90 67 Engine 8 | . 14 11 2 Treads 15 | . 28 24 2 Wheel 6 | . . 3 11 Device 10 | . 5 11 13 Storage 16 | . 14 17 18 Energy Gun 12 | . 23 11 4 Energy Cannon 3 | . . 4 4 Ballistic Gun 1 | . . . 3 Launcher 3 | . 4 6 2 Peak Build Rating 20 | 6 11 14 20 Average Rating 11 | 4 7 12 15 On Entrance 7 | . 6 11 14 Naked Turns . | . . . . Heaviest Build 107 | 11 15 95 107 Greatest Support 60 | 40 40 60 36 Greatest Overweight (x) 29 | 3 . 5 29 Average Overweight (x) 2 | . . 1 4 Largest Inventory Capacity 25 | 8 8 25 25 Average Capacity 17 | 7 8 18 25 Most Carried 18 | 2 8 15 18 Average Carried 10 | 1 6 11 15 Final Capacity 25 | 8 8 25 25 Final Carried 14 | 2 8 14 9 Class Distribution -------------------- 82% | Mutant 17% | Scavenger-Mutant Dominant Class ---------------- Mutant | -10/Materials Mutant | -9/Materials Mutant | -8/Materials Resources | -11 -10 -9 -8 ----------- Run | Yrd Mat Mat Mat Matter Collected 942 | 159 129 23 631 Remotely . | . . . . Salvage Created 1285 | . 168 243 874 Parts 78 | . 9 16 53 Haulers Intercepted 1 | . . . 1 Recyclers Shooed 2 | . . . 2 Parts Field Recycled . | . . . . Retrieved Matter . | . . . . Parts Self-Destructed . | . . . . Prevented . | . . . . Kills | -11 -10 -9 -8 ------- Run | Yrd Mat Mat Mat Combat Hostiles Destroyed 35 | . 5 7 23 Guns 13 | . 3 3 7 Cannons 5 | . . 3 2 AOE 17 | . 2 1 14 Classes Destroyed 12 | . 2 5 5 Worker 7 | . . 1 6 Builder 4 | . 1 . 3 Tunneler 2 | . . . 2 Hauler 1 | . . . 1 Recycler 1 | . . . 1 Watcher 2 | . . 1 1 Swarmer 4 | . . 4 . Grunt 23 | . 5 1 17 Brawler 1 | . . 1 . Sentry 5 | . . 1 4 Hunter 1 | . . . 1 Heavy 1 | . . . 1 Best Kill Streak 9 | . 2 6 9 Combat Bots Only 7 | . 1 4 7 Max Kills in Single Turn 5 | . 1 1 5 Gunslinging . | . . . . Exploded 2 | . 1 1 2 Melee . | . . . . Uniques/NPCs Destroyed . | . . . . Combat | -11 -10 -9 -8 -------- Run | Yrd Mat Mat Mat Hostile Shots Fired 222 | . 29 22 171 Missed 55 | . 8 5 42 Hits 167 | . 21 17 129 Projectile 167 | . 21 17 129 Critical Strikes 9 | . 3 . 6 Damage Taken 3193 | . 322 188 2683 Core 634 | . 53 15 566 Absorbed by Shields . | . . . . Core Remaining (%) 91 | 100 78 96 . Volleys Fired 92 | . 19 14 59 Largest 2 | . 2 2 2 Hottest 135 | . 90 110 135 Shots Fired 170 | . 35 28 107 Gun 81 | . 28 14 39 Cannon 59 | . . 12 47 Launcher 30 | . 7 2 21 Special . | . . . . Kinetic 35 | . . . 35 Thermal 105 | . 28 26 51 Explosive 30 | . 7 2 21 Electromagnetic . | . . . . Robot Hit Streak 9 | . 4 7 9 Robot Miss Streak 7 | . 2 3 7 Penetration Max . | . . . . Secondary Targets . | . . . . Shots Hit Robots 111 | . 23 18 70 Core Hits 109 | . 12 12 85 Critical Kills . | . . . . Critical Parts Destroyed . | . . . . Critical Strikes 4 | . 2 1 1 Burn 4 | . 2 1 1 Melee Attacks . | . . . . Impact . | . . . . Slashing . | . . . . Piercing . | . . . . Sneak Attacks . | . . . . Combat Hostiles . | . . . . Follow-up Attacks . | . . . . Damage Inflicted 4659 | . 480 336 3843 Guns 958 | . 215 150 593 Cannons 822 | . . 140 682 Explosions 2879 | . 265 46 2568 Melee . | . . . . Ramming . | . . . . Kinetic 618 | . . . 618 Thermal 1162 | . 215 290 657 Explosive 2879 | . 265 46 2568 Electromagnetic . | . . . . Impact . | . . . . Slashing . | . . . . Piercing . | . . . . Highest Corruption 1 | . . 1 . Average Corruption 1 | . . 1 . Corruption Purged . | . . . . Corruption Blocked . | . . . . Overload Shots . | . . . . Overflow Damage 42 | . 14 . 28 Projectiles 3 | . . . 3 Explosions 39 | . 14 . 25 Melee . | . . . . Knockbacks . | . . . . Impact . | . . . . Kinetic . | . . . . Secondary . | . . . . Self-Inflicted Damage 142 | . 26 . 116 Shots 6 | . 1 . 5 Rammed . | . . . . Targets Rammed . | . . . . Kicked . | . . . . Crushed . | . . . . Highest Temperature 231 | . 231 . 171 Average Temperature 93 | . 106 . 75 Received Heat Transfer 1164 | . 219 27 918 Effects 1 | . 1 . . Interference 1 | . 1 . . Siege Activations . | . . . . Martial Activations . | . . . . Shielding Activations . | . . . . Robots Disrupted . | . . . . Combat Hostiles . | . . . . Robots Corrupted . | . . . . Combat Hostiles . | . . . . Parts Fried . | . . . . Impact Corruptions . | . . . . Robots Melted . | . . . . Combat Hostiles . | . . . . Parts Melted 4 | . 2 2 . Heat Transferred 2815 | . 706 814 1295 Parts Sabotaged . | . . . . Parts Stolen . | . . . . Parts Stripped . | . . . . Power Chain Reactions . | . . . . Alert | -11 -10 -9 -8 ------- Run | Yrd Mat Mat Mat Maximum Alert Level 2 | . . . 2 Low Security (%) 81 | 100 100 100 56 Level 1 10 | . . . 24 Level 2 8 | . . . 18 Level 3 . | . . . . Level 4 . | . . . . Level 5 . | . . . . High Security . | . . . . Max Security . | . . . . Peak Influence 439 | . 74 97 439 Initial 36 | . . 17 36 Average 119 | . 21 30 242 Influence Increases 1322 | . 204 207 911 Destroy 0b10 Robot/C 700 | . 100 140 460 Destroy 0b10 Robot/NC 85 | . 5 10 70 Destroy Leader 176 | . 30 32 114 Successful Hack 19 | . 15 4 . Disable Machine 60 | . . . 60 Destroy Structure 192 | . 39 21 132 Lose Combat Pursuer 90 | . 15 . 75 Influence Decreases 899 | . 162 162 575 Entered New Map 76 | . . 25 51 Time Decay 583 | . 162 127 294 Lost Part 240 | . . 10 230 Squads Dispatched 12 | . 1 1 10 Investigation 1 | . 1 . . Extermination . | . . . . Reinforcement 8 | . . 1 7 Assault 2 | . . . 2 Garrison 1 | . . . 1 Intercept . | . . . . Searches Triggered . | . . . . Construction Impeded 2 | . . . 2 Haulers Reinforced . | . . . . Active Scanning Responses . | . . . . Cargo Convoy Interrupts . | . . . . Stealth | -11 -10 -9 -8 --------- Run | Yrd Mat Mat Mat Distress Signals 4 | . 1 2 1 Communications Jammed . | . . . . Distress Signals . | . . . . Times Spotted 50 | . 8 11 31 Peak Tracking Total 7 | . 3 5 7 Tactical Retreats 5 | . 1 . 4 Traps | -11 -10 -9 -8 ------- Run | Yrd Mat Mat Mat Traps Triggered 2 | . 1 1 . Indirectly . | . . . . Trap Hack Attempts . | . . . . Triggered . | . . . . Disarmed . | . . . . Reprogrammed . | . . . . Reused . | . . . . Traps Extracted . | . . . . Installed . | . . . . Triggered . | . . . . Machines | -11 -10 -9 -8 ---------- Run | Yrd Mat Mat Mat Machines Disabled 4 | . . . 4 Max in Single Turn 1 | . . . 1 Garrison Access 1 | . . . 1 Machines Repaired . | . . . . Machines Dismantled . | . . . . Machines Sabotaged . | . . . . Overloaded Fab Kills . | . . . . Hacking | -11 -10 -9 -8 --------- Run | Yrd Mat Mat Mat Machines Accessed 10 | . 6 2 2 Terminals 10 | . 6 2 2 Fabricators . | . . . . Repair Stations . | . . . . Recycling Units . | . . . . Scanalyzers . | . . . . Garrison Access . | . . . . Total Hacks 31 | . 21 6 4 Successful 8 | . 6 2 . Failed 22 | . 14 4 4 Catastrophic 2 | . . . 2 Database Lockouts 1 | . 1 . . Manual 35 | . 23 8 4 Terminals 31 | . 21 6 4 Fabricators . | . . . . Repair Stations . | . . . . Recycling Units . | . . . . Scanalyzers . | . . . . Garrison Access . | . . . . Terminal Hacks 2 | . 2 . . Robot Analysis 1 | . 1 . . Terminal Index 1 | . 1 . . Fabricator Hacks . | . . . . Repair Station Hacks . | . . . . Recycling Unit Hacks . | . . . . Scanalyzer . | . . . . Garrison Access Hacks . | . . . . Unauthorized Hacks 6 | . 4 2 . Terminals 6 | . 4 2 . Botnet 6 | . 4 2 . Fabricators . | . . . . Repair Stations . | . . . . Recycling Units . | . . . . Scanalyzers . | . . . . Garrison Access . | . . . . Data Cores Recovered . | . . . . Used . | . . . . Hacking Detections 10 | . 6 2 2 Full Trace Events . | . . . . Feedback Events . | . . . . Feedback Blocked . | . . . . Robot Schematics Acquired . | . . . . Robots Built . | . . . . Authchips . | . . . . Time . | . . . . Total Robot Build Rating . | . . . . Part Schematics Acquired . | . . . . Parts Built . | . . . . Authchips . | . . . . Time . | . . . . Total Part Build Rating . | . . . . Parts Repaired . | . . . . Time . | . . . . Parts Recycled . | . . . . Recycled Matter . | . . . . Retrieved Matter . | . . . . Retrieved Components . | . . . . Parts Scanalyzed . | . . . . Part Schematics Acquired . | . . . . Parts Damaged . | . . . . Bothacking | -11 -10 -9 -8 ------------ Run | Yrd Mat Mat Mat Used RIF Installer . | . . . . Robots Hacked . | . . . . Non-combat . | . . . . Combat . | . . . . Robot Hacks Applied . | . . . . Relay Couplers Released 1 | . . . 1 Machine Destruction 1 | . . . 1 Fabnet Peak Effective % . | . . . . Robots Rewired . | . . . . Allies Hacked . | . . . . Hacks Repelled . | . . . . Allies | -11 -10 -9 -8 -------- Run | Yrd Mat Mat Mat Total Allies . | . . . . Largest Group . | . . . . Highest-Rated Group . | . . . . Highest-Rated Ally . | . . . . Total Orders . | . . . . Ally Attacks . | . . . . Total Damage . | . . . . Kills . | . . . . Allies Corrupted . | . . . . Allies Melted . | . . . . Intel | -11 -10 -9 -8 ------- Run | Yrd Mat Mat Mat Active Infowar (turns) . | . . . . Robot Analysis Total 1 | . 1 . . Derelict Logs Recovered . | . . . . Drone Launches . | . . . . Drone Recoveries . | . . . . Exploration | -11 -10 -9 -8 ------------- Run | Yrd Mat Mat Mat Turns Passed 1493 | 70 475 292 656 Spaces Moved 676 | 38 255 128 255 Core 18 | 15 . . 3 Treads 361 | 23 255 83 . Legs . | . . . . Wheels 297 | . . 45 252 Hover . | . . . . Flight . | . . . . Fastest Speed 50 | 50 160 160 116 Average Speed 168 | 157 160 179 174 Slowest Speed 1500 | 200 160 240 1500 Overloaded Moves . | . . . . Propulsion Burnouts . | . . . . Robots Hopped . | . . . . Potential Cave-ins . | . . . . Cave-ins Triggered . | . . . . Exploration Rate (%) 24 | 4 37 17 41 Regions Visited 3 Branch Regions . Pre-discovered Areas . | . . . . Known Exits Taken . | . . . . Unknown Exits Taken 3 | 1 1 1 . Scrap Searched . | . . . . Spaces Dug 3 | . . . 3 Terrain Destroyed 195 | . 40 21 134 Melee . | . . . . Projectile 6 | . . . 6 AOE 189 | . 40 21 128 Terrain Rammed . | . . . . Walls Destroyed . | . . . . Machines Disabled . | . . . . Actions | -11 -10 -9 -8 --------- Run | Yrd Mat Mat Mat Total 852 | 45 288 161 358 Wait 11 | . . . 11 Move 673 | 37 254 127 255 Hop . | . . . . Pick Up 27 | 2 9 10 6 Fast Attach 16 | 6 2 2 6 Attach 13 | . . 2 11 Detach . | . . . . Swap 13 | . . 3 10 Drop 7 | . 4 3 . Fire 92 | . 19 14 59 Melee . | . . . . Ram . | . . . . Kick . | . . . . Crush . | . . . . Escape Stasis . | . . . . Rewire . | . . . . Trap . | . . . . Miscellaneous . | . . . . Route ------- -11/Scrapyard -10/Materials (discovered 2 exits: *Mat / [*Min]) -9/Materials -8/Materials (discovered 1 exit: [*Fac]) History --------- Turn | Location | Event 26 | -11/Scrapyard | Discovered new exit (range 15) 71 | -11/Scrapyard | Entered Materials 283 | -10/Materials | Central database locked down 300 | -10/Materials | Build established: Mutant 436 | -10/Materials | Discovered new exit (range 6) 508 | -10/Materials | Discovered new exit (range 16) 546 | -10/Materials | Entered another Materials area 546 | -9/Materials | Evolved 2 slots: Propulsion x1, Utility x1 779 | -9/Materials | Discovered new exit (range 16) 838 | -9/Materials | Entered another Materials area 838 | -8/Materials | Evolved 2 slots: Propulsion x1, Utility x1 871 | -8/Materials | Garrison activated, responded to threat 951 | -8/Materials | Lost 3 parts (1p2n) 955 | -8/Materials | Destroyed 7 combat bots 1231 | -8/Materials | Discovered new exit (range 10) 1374 | -8/Materials | Lost 4 parts (3n1w) 1395 | -8/Materials | Core integrity fell below 50% 1438 | -8/Materials | Core integrity fell below 20% 1479 | -8/Materials | Lost 11 parts (2p1n2u6w) 1494 | -8/Materials | Destroyed by H-55 Commando with Gauss Rifle Last Messages --------------- 01474_ The unstable cave ceiling collapses. 01474_ U-05 Engineer builds a Wall. 01474_ K-01 Serf collects debris. 01475_ The unstable cave ceiling collapses. 01478_ U-05 Engineer lays Concrete. 01479_ K-01 Serf collects debris. 01481_ U-05 Engineer builds a Wall. 01482_ K-01 Serf collects debris. 01484_ U-05 Engineer lays Concrete. 01485_ K-01 Serf collects debris. 01485_ U-05 Engineer lays Concrete. 01487_ U-05 Engineer builds a Wall. 01489_ K-01 Serf collects debris. 01490_ U-05 Engineer builds a Wall. 01491_ K-01 Serf collects debris. 01491_ U-05 Engineer lays Concrete. 01491_ K-01 Serf collects debris. 01493_ U-05 Engineer builds a Wall. 01494_ K-01 Serf collects debris. 01494_ Penetrated by Slug. Map ----- +----------------------------------------------------+ | ???????????????????+ """" #??????? #????????? | | ???????????????????# """" #??#######/#######???? | | ???????????????????# """" #??# #???? | | ???????????????????# #??# * #???? | | ???????????????????########+#??# % #???? | | ??????????????????????????# #### #???? | | ??????????????????????????# + ! * #???? | | ??????????????????????????# # #???? | | ??????????????????????##### ###############???? | | ??????????????????????+ #????????" ???????? | | ??????????????????????######## #??????"T" #??????? | | ?????????????????????????????# ###?? #??????? | | ?????????????????????????????# # ] ! #??????? | | ?????????????????????????????# + =#??????? | | ?????????????????????????????# # """ #??????? | | ?????????????????????????????# #?? """ ????????? | | ?????????????????#+########### #????"" ????????? | | ???????????????? #?????? ????????? | | ???????????????? #???????????????? | | ???????????????? #???????????????? | | ??????????????????############ % ##??????????????? | | ?????????????????? ; % #[|!##??????????????? | | ?????????????????????# "" "=%+%*%##??????????????? | | ????????????#????????# "" %!!#!!*# #?????????????? | | ????????????# ??????# " %= = #?????????????? | | ????????????# ????# @ % %# ######????????? | | ????????????# ??# #????????? | | ????????????# # ] k #????????? | | ????????????# ; #!! # #????????? | | ????????????# # k #%% #????????? | | ????????????########?# #! #????????? | | ????????????????####### ## # #????????? | | ??############### T"#### # #######????????? | | m % # ???????????? | | u % # #????????? | | %# #????????? | | ??############## ######+###h + ]] #????????? | | ???????????????# # #% # ]! #????????? | | ???????????????# # ! #% # ]! #????????? | | ???????????????# # # #?######????????? | | ????????????#### # """# #???????????????? | | ????????????# # """# ##??????????????? | | ????????????# #]! """# #??????????????? | | ????????????# #]! """# #??????????????? | | ????????????# #] """# ##??????????????? | | ????????????# # #??????????????? | | ????????????# ####### #??????????????? | | ?????????# !% % #??????????????? | | ?????????# ### #??????????????? | | ?????????# ### # ! #??????????????? | +----------------------------------------------------+ Best States ------------- Heat Dissipation 55 Energy Generation 14 Energy Capacity 265 Matter Stores 300 Matter Capacity 300 Sight Range 16 Terrain Scan Density 10 Evasion (%) 40 Recoil Reduction 3 Item Schematics ----------------- None Robot Schematics ------------------ None Fabricated ------------ Nothing Repaired ---------- Nothing Alien Tech Used ----------------- None Achievements -------------- None Challenges ------------ None Game ------ Seed DirectedStrikeMatter Manual? 1 Play Time 00:21:15 Cumulative 204.3 hours Start 2025.05.22 @ 17:57:24 End 2025.05.22 @ 19:31:45 Sessions 2 Manual Loads 0 Difficulty Rogue Special Mode None Game No. 199 Rogue 199 Adventurer 0 Explorer 0 Win Type - Total 1 Types 1/0/0/0/0/0/0/0/0/0 Lore% 70 Gallery% 56 Achievement% 48 Wizard Run 0 Options --------- Layout 1 ASCII 0 Keyboard 0 Movement Mouse Keybinds 0 Fullscreen 1 Font 24/Smallcaps Map View 50x35 Zoom Use 0% Tactical HUD 1 Map Filters NONE Filters NONE Steam 1 RUN: dffb67ab-b688-4068-a300-6efddfa53c9d